fUSD/lending_fUSD_20250428
["ID","MTS","AMOUNT","RATE_DAILY","PERIOD"]
[359215992,1745827832087,-173516.35705259,0.0002,2]
[359215993,1745827832100,-119083.51402639,0.0002,2]
[359215994,1745827832115,-1502.46852206,0.0002,2]
[359215995,1745827832126,-563.70807734,0.0002,2]
[359215996,1745827832138,-2939.9663144,0.0002,2]
[359216060,1745827837798,-77368.02677275,0.0002,2]
[359216061,1745827837808,-166059.61548878,0.0002,2]
[359216062,1745827837820,-200.8442945,0.0002,2]
[359216063,1745827837830,-3000.0,0.0002,2]
[359216064,1745827837839,-242.0,0.0002,2]
[359216065,1745827837848,-242.0,0.0002,2]
[359216066,1745827837859,-242.0,0.0002,2]
[359216067,1745827837869,-242.0,0.0002,2]
[359216068,1745827837879,-242.0,0.0002,2]
[359216069,1745827837888,-242.0,0.0002,2]
[359216070,1745827837900,-242.0,0.0002,2]
[359216071,1745827837910,-242.0,0.0002,2]
[359216072,1745827837923,-242.0,0.0002,2]
[359216073,1745827837933,-242.0,0.0002,2]
[359216074,1745827837943,-242.0,0.0002,2]
[359216075,1745827837954,-242.0,0.0002,2]
[359216076,1745827837963,-242.0,0.0002,2]
[359216077,1745827837974,-242.0,0.0002,2]
[359216078,1745827837985,-242.0,0.0002,2]
[359216079,1745827837995,-242.0,0.0002,2]
[359216080,1745827838006,-242.0,0.0002,2]
[359216081,1745827838016,-156.53207932,0.0002,2]
[359216082,1745827838027,-329642.22166405,0.0002,2]
[359216083,1745827838094,-322.39015988,0.0002,2]
[359216084,1745827838106,-5799.06923783,0.0002,2]
[359216085,1745827838148,-874.1922199,0.0002,2]
[359216086,1745827838207,-363.14670023,0.0002,2]
[359216087,1745827838236,-435.10499972,0.0002,2]
[359216089,1745827838248,-1503.3045613,0.0002,2]
[359216091,1745827838260,-1026.68994,0.0002,2]
[359216092,1745827838272,-1768.39999999,0.0002,2]
[359216093,1745827838283,-740.95,0.0002,2]
[359216218,1745827851358,-260.72634099,0.0002,2]
[359216219,1745827851526,-225.86580749,0.0002,2]
[359216220,1745827851538,-1173.13470736,0.0002,2]
[359216221,1745827851579,-818.34853187,0.0002,2]
[359216222,1745827851601,-4741.35094822,0.0002,2]
[359216223,1745827851761,-284.38709512,0.0002,2]
[359216224,1745827851779,-244.61290488,0.0002,2]
[359216225,1745827851788,-1071.34709512,0.0002,2]
[359216226,1745827851800,-2842.62,0.0002,2]
[359216227,1745827851898,-4034.98412935,0.0002,2]
[359216228,1745827851959,-319.16638441,0.0002,2]
[359216229,1745827852102,-295.63515401,0.0002,2]
[359216230,1745827852191,-645.63428451,0.0002,2]
[359216231,1745827852233,415.38247835,0.00018996,2]
[359216232,1745827854136,5011.0,0.00040548,30]
[359216233,1745827899026,207.0,0.0004003,30]
[359216234,1745827899466,207.0,0.0003918,30]
[359216235,1745827899671,207.0,0.0003833,30]
[359216236,1745827901827,157.93,0.0004,30]
[359216237,1745827902097,157.93,0.0004,30]
[359216238,1745827928185,200.0,0.00040548,30]
[359216239,1745827928822,207.4,0.00040548,30]
[359216240,1745827929522,215.0738,0.00040548,30]
[359216241,1745827930191,223.0315306,0.00040548,30]
[359216242,1745827930861,231.28369723,0.00040548,30]
[359216243,1745827931524,239.84119403,0.00040548,30]
[359216244,1745827932398,248.71531821,0.00040548,30]
[359216245,1745827933079,257.91778498,0.00040548,30]
[359216246,1745827933711,267.46074303,0.00040548,30]
[359216247,1745827934358,277.35679052,0.00040548,30]
[359216248,1745827934887,1819.10309775,0.0004,30]
[359216249,1745827935060,287.61899177,0.00040548,30]
[359216250,1745827935715,298.26089446,0.00040548,30]
[359216251,1745827936403,309.29654756,0.00040548,30]
[359216252,1745827937118,320.74051982,0.00040548,30]
[359216253,1745827937811,332.60791905,0.00040548,30]
[359216254,1745827938462,344.91441206,0.00040548,30]
[359216255,1745827939093,357.6762453,0.00040548,30]
[359216256,1745827939776,370.91026638,0.00040548,30]
[359216257,1745827940398,384.63394623,0.00040548,30]
[359216258,1745827941013,398.86540225,0.00040548,30]
[359216259,1745827987000,310.0,0.0004,30]
[359216260,1745827996021,2000.0,0.00018844,2]
[359216261,1745828058869,3825.516387,0.00040548,30]
[359216262,1745828059376,310.57521983,0.0004,30]
[359216263,1745828075139,6100.84411617,0.00040548,30]
[359216264,1745828094044,350.428,0.00040507,30]
[359216265,1745828108329,893.79,0.00017325,2]
[359216266,1745828114700,250.0,0.00019186,7]
[359216267,1745828122843,155.89,0.000335,31]
[359216268,1745828122902,155.89,0.000366,31]
[359216269,1745828122969,155.89,0.000366,31]
[359216270,1745828123018,155.89,0.000396,31]
[359216271,1745828123079,155.89,0.000396,31]
[359216272,1745828162253,-364.82932349,0.00019408,2]
[359216273,1745828228964,200.0,0.00040548,30]
[359216274,1745828229411,207.4,0.00040548,30]
[359216275,1745828230081,215.0738,0.00040548,30]
[359216276,1745828230708,223.0315306,0.00040548,30]
[359216277,1745828231317,231.28369723,0.00040548,30]
[359216278,1745828231976,239.84119403,0.00040548,30]
[359216279,1745828232747,248.71531821,0.00040548,30]
[359216280,1745828233990,257.91778498,0.00040548,30]
[359216281,1745828234683,267.46074303,0.00040548,30]
[359216282,1745828235428,411.53756875,0.00040548,30]
[359216283,1745828243121,196.0,0.000405,30]
[359216284,1745828264778,196.0,0.000405,31]
[359216285,1745828276858,195.0,0.000405,32]
[359216286,1745828287027,15000.0,0.00040548,30]
[359216287,1745828293898,196.0,0.000405,33]
[359216288,1745828319496,196.0,0.000405,35]
[359216289,1745828326100,1000.0,0.00036,60]
[359216290,1745828332590,6983.48186164,0.00040547,30]
[359216291,1745828341173,1000.0,0.0004,30]
[359216292,1745828353836,1000.0,0.0003,30]
[359216293,1745828359427,1500.0,0.00032877,120]
[359216294,1745828374149,1000.0,0.0004,30]
[359216295,1745828387758,10576.36999999,0.00040548,30]
[359216296,1745828389853,195.9,0.000405,45]
[359216297,1745828397737,-635.17067651,0.00019408,2]
[359216298,1745828397768,-200.0,0.00019498,2]
[359216299,1745828397794,-893.79,0.00019589,2]
[359216300,1745828397820,-200.0,0.00019699,2]
[359216301,1745828397845,-796.93242777,0.000197,2]
[359216302,1745828397870,-735.23249726,0.00019842,2]
[359216303,1745828397898,-1200.0,0.00019899,2]
[359216304,1745828397924,-300.0,0.00019899,2]
[359216305,1745828397950,-300.0,0.00019899,2]
[359216306,1745828397974,-196.13152572,0.000199,2]
[359216307,1745828398004,-1000.0,0.000199,2]
[359216308,1745828398029,-1617.7153,0.000199,2]
[359216309,1745828398057,-1345.81638041,0.000199,2]
[359216310,1745828398084,-415.4359,0.000199,2]
[359216311,1745828398108,-1101.2126371,0.000199,2]
[359216312,1745828398133,-2500.0,0.000199,2]
[359216313,1745828398161,-354.02741972,0.000199,2]
[359216314,1745828398186,-334.04118549,0.000199,2]
[359216315,1745828398213,-814.9190617,0.000199,2]
[359216316,1745828398238,-151.0,0.00019953,2]
[359216317,1745828398264,-350.55089011,0.00019973,2]
[359216318,1745828398291,-500.0,0.00019973,2]
[359216319,1745828398316,-500.0,0.00019973,2]
[359216320,1745828398344,-161.4146939,0.00019973,2]
[359216321,1745828398371,-500.0,0.00019973,2]
[359216322,1745828398398,-506.95241111,0.00019973,2]
[359216323,1745828398426,-500.0,0.00019973,2]
[359216324,1745828398453,-911.814,0.00019999,2]
[359216325,1745828398479,-877.0,0.00019999,2]
[359216326,1745828398694,-1135.0,0.00019999,2]
[359216327,1745828398720,-1462.741,0.00019999,2]
[359216328,1745828398745,-585.779,0.00019999,2]
[359216329,1745828398769,-554.05,0.00019999,2]
[359216330,1745828398792,-1031.298,0.00019999,2]
[359216331,1745828398821,-2082.46,0.00019999,2]
[359216332,1745828398846,-179.084,0.00019999,2]
[359216333,1745828398871,-1953.977,0.00019999,2]
[359216334,1745828398898,-500.0,0.00019999,2]
[359216335,1745828398923,-375.27714991,0.00019999,2]
[359216336,1745828398950,-500.0,0.00019999,2]
[359216337,1745828398977,-500.0,0.00019999,2]
[359216338,1745828399007,-500.0,0.00019999,2]
[359216339,1745828399034,-500.0,0.00019999,2]
[359216340,1745828399060,-500.0,0.00019999,2]
[359216341,1745828399088,-500.0,0.00019999,2]
[359216342,1745828399117,-499.99999999,0.00019999,2]
[359216343,1745828399146,-263.48846521,0.0002,2]
[359216344,1745828399174,-218462.68837809,0.0002,2]
[359216345,1745828399330,350.428,0.00040507,30]
[359216346,1745828400931,3022.04437077,0.00040548,30]
[359216347,1745828401446,150.74,0.00027425,30]
[359216348,1745828413198,3021.82,0.00040548,30]
[359216349,1745828423966,4532.73,0.00040548,30]
[359216350,1745828433809,4532.73,0.00040548,30]
[359216351,1745828444835,1510.91,0.00040548,30]
[359216352,1745828466165,4532.73,0.00040548,30]
[359216353,1745828489336,4532.73,0.00040548,30]
[359216354,1745828491125,50000.0,0.0004054,30]
[359216355,1745828494560,50000.0,0.0004054,31]
[359216356,1745828498326,50000.0,0.0004054,32]
[359216357,1745828501797,50000.0,0.0004054,33]
[359216358,1745828505289,50000.0,0.0004054,34]
[359216359,1745828518337,53678.0421827,0.00040547,30]
[359216360,1745828557447,882.77282406,0.00040548,120]
[359216361,1745828592958,500.0,0.00038411,120]
[359216362,1745828593328,500.0,0.00040547,120]
[359216363,1745828599851,500.0,0.00038411,120]
[359216364,1745828600197,500.0,0.00040547,120]
[359216365,1745828603583,500.0,0.00038411,120]
[359216366,1745828603955,500.0,0.00040547,120]
[359216367,1745828659350,502.0,0.00040547,30]
[359216368,1745828671525,250.0,0.00017,2]
[359216369,1745828672605,300.0,0.00019,2]
[359216370,1745828689096,1650.0,0.0004054,30]
[359216371,1745828702527,350.428,0.00040507,30]
[359216372,1745828710263,150.0,0.00038356,30]
[359216373,1745828710670,150.0,0.00038356,30]
[359216374,1745828711038,150.0,0.00038356,30]
[359216375,1745828711240,281.13834931,0.00038356,30]
[359216376,1745828712187,254.22527916,0.00038356,30]
[359216377,1745828714704,150.0,0.00038356,30]
[359216378,1745828714870,150.0,0.00038356,30]
[359216379,1745828715238,150.0,0.00038356,30]
[359216380,1745828715473,213.73065524,0.00038356,30]
[359216381,1745828716779,150.0,0.00038356,30]
[359216382,1745828716965,150.0,0.00038356,30]
[359216383,1745828717141,150.0,0.00038356,30]
[359216384,1745828717515,276.36621046,0.00038356,30]
[359216385,1745828725229,155.92,0.000335,31]
[359216386,1745828725284,155.92,0.000366,31]
[359216387,1745828725351,155.92,0.000366,31]
[359216388,1745828725414,155.92,0.000396,31]
[359216389,1745828725469,155.92,0.000396,31]
[359216390,1745828727289,657.64719806,0.00036,60]
[359216391,1745828728246,429.38380138,0.00023,120]
[359216392,1745828732507,598.44512998,0.0002,120]
[359216393,1745828734525,813.95731324,0.00037808,60]
[359216405,1745828761449,203.95668698,0.0003293,30]
[359216406,1745828801193,157.93,0.0004,30]
[359216407,1745828801569,157.93,0.0004,30]
[359216408,1745828802825,838.0,0.00040548,30]
[359216410,1745828831065,1927.95103658,0.0002301,120]
[359216414,1745828863960,282.87412231,0.000314,30]
[359216415,1745828868134,897.39192628,0.0003,120]
[359216416,1745828873554,2020.0,0.0002,120]
[359216417,1745828879276,2113.8451392,0.0003254,30]
[359216418,1745828888308,1390.49508883,0.00039,120]
[359216419,1745828892173,178.44066404,0.00027,120]
[359216420,1745828905524,249.23,0.00019203,2]
[359216421,1745828906354,249.23,0.00026404,120]
[359216422,1745828906703,249.23,0.00028804,120]
[359216423,1745828913442,220.28568538,0.00028799,120]
[359216424,1745828915267,356.39822615,0.0003,60]
[359216425,1745828916154,1271.69967507,0.00036,120]
[359216426,1745828916675,811.74492658,0.00039,120]
[359216427,1745828917169,862.05181681,0.00030137,120]
[359216428,1745828917961,615.15971345,0.0004,30]
[359216433,1745828919265,1468.40041008,0.00036,60]
[359216434,1745828920396,179.93252708,0.00039,120]
[359216435,1745828925778,644.95616215,0.0002,120]
[359216436,1745828926374,1019.55732006,0.000377,120]
[359216437,1745828927071,996.0,0.00035,60]
[359216442,1745828953855,1653.07,0.00040547,30]
[359216443,1745829003245,317.26,0.00040548,30]
[359216444,1745829020436,153.43782775,0.00038356,30]
[359216445,1745829021512,500.0,0.00038356,30]
[359216446,1745829021667,500.0,0.00038356,30]
[359216447,1745829021835,364.78364638,0.00038356,30]
[359216448,1745829022591,150.0,0.00038356,30]
[359216449,1745829022763,150.0,0.00038356,30]
[359216450,1745829022932,150.0,0.00038356,30]
[359216451,1745829023099,150.0,0.00038356,30]
[359216452,1745829023272,150.0,0.00038356,30]
[359216453,1745829023439,205.42977538,0.00038356,30]
[359216454,1745829024529,150.0,0.00038356,30]
[359216455,1745829024623,200.86811545,0.00038356,30]
[359216456,1745829025350,151.20851112,0.00038356,30]
[359216457,1745829026850,150.0,0.00038356,30]
[359216458,1745829027031,150.0,0.00038356,30]
[359216459,1745829027418,205.12022661,0.00038356,30]
[359216460,1745829028263,150.0,0.00038356,30]
[359216461,1745829028446,204.00202575,0.00038356,30]
[359216462,1745829029223,350.428,0.00040507,30]
[359216463,1745829029716,150.0,0.00038356,30]
[359216464,1745829029916,150.0,0.00038356,30]
[359216465,1745829030104,155.91469509,0.00038356,30]
[359216471,1745829031863,-735.23249726,0.00019755,2]
[359216473,1745829031873,-61.74759825,0.00019766,2]
[359216474,1745829031914,-188.25240175,0.00019766,2]
[359216475,1745829031927,-158.5213762,0.0001977,2]
[359216476,1745829031937,-166.68,0.00019813,2]
[359216477,1745829031947,-186.54622205,0.0001984,2]
[359216478,1745829032023,-1813.45377795,0.0001984,2]
[359216479,1745829032032,-766.78046884,0.0001984,2]
[359216480,1745829032043,-1200.0,0.00019898,2]
[359216481,1745829032052,-300.0,0.00019899,2]
[359216482,1745829032061,-300.0,0.00019899,2]
[359216483,1745829032071,-630.9269,0.000199,2]
[359216484,1745829032080,-339.54023322,0.000199,2]
[359216485,1745829032090,-7846.86062826,0.000199,2]
[359216486,1745829032099,-734.14175808,0.000199,2]
[359216487,1745829032108,-2354.76255624,0.000199,2]
[359216488,1745829032118,-2354.76255624,0.000199,2]
[359216489,1745829032127,-787.75509288,0.000199,2]
[359216490,1745829032136,-500.0,0.00019973,2]
[359216491,1745829032145,-500.0,0.00019973,2]
[359216492,1745829032155,-486.14190555,0.00019979,2]
[359216493,1745829032164,-156.20860496,0.0001998,2]
[359216494,1745829032173,-2440.99524191,0.0001998,2]
[359216495,1745829032224,-20322.97905258,0.0001998,2]
[359216496,1745829032233,-222.12888352,0.0001999,2]
[359216497,1745829032242,-6288.53409455,0.0001999,2]
[359216498,1745829032253,-3996.0,0.00019999,2]
[359216499,1745829032262,-265.141,0.00019999,2]
[359216500,1745829032272,-300.0,0.00019999,2]
[359216501,1745829032282,-354.73181093,0.0002,2]
[359216502,1745829032292,-163.12122896,0.0002,2]
[359216504,1745829032301,-20038.70181579,0.0002,2]
[359216506,1745829032311,-65129.90883022,0.0002,2]
[359216511,1745829032343,-5871.374775,0.0002,2]
[359216513,1745829032358,-496.85031604,0.0002,2]
[359216526,1745829037839,-877.0,0.00019999,2]
[359216527,1745829037849,-177.36590547,0.0002,2]
[359216528,1745829037858,-579486.87439393,0.0002,2]
[359216529,1745829037893,-5933.55,0.0002,2]
[359216530,1745829037905,-10272.5287,0.0002,2]
[359216531,1745829037916,-14450.025,0.0002,2]
[359216532,1745829037927,-35540.7,0.0002,2]
[359216533,1745829038001,-459.6588879,0.0002,2]
[359216560,1745829038505,-382.39977224,0.0002,2]
[359216563,1745829038516,-19218.23614524,0.0002,2]
[359216572,1745829038604,-467.66269099,0.0002,2]
[359216573,1745829038615,-281.66,0.0002,2]
[359216574,1745829038626,-589.97551441,0.0002,2]
[359216577,1745829040023,-31513.66337422,0.0002,2]
[359216578,1745829040263,-474.35848056,0.0002,2]
[359216580,1745829042143,-751.12497702,0.0002,2]
[359216581,1745829042155,-331.07,0.0002,2]
[359216582,1745829042207,-4682.02666871,0.0002,2]
[359216583,1745829042222,-1149.49164026,0.0002,2]
[359216599,1745829042974,-2031.22628573,0.00019999,2]
[359216611,1745829046591,-2150.10003,0.00019999,2]
[359216612,1745829046603,-937.69234994,0.00019999,2]
[359216613,1745829046647,-1073.98133433,0.00019999,2]
[359216614,1745829046657,-88.59996848,0.0002,2]
[359216615,1745829046685,-887.87115088,0.0002,2]
[359216616,1745829046698,-6895.0512998,0.0002,2]
[359216617,1745829046827,317.27,0.00040548,30]
[359216618,1745829071872,-279.94442703,0.00019799,2]
[359216619,1745829085087,317.27,0.00040548,30]
[359216620,1745829109104,1534.6,0.00040547,30]
[359216621,1745829109604,-279.94442703,0.00019799,2]
[359216622,1745829122207,-30.32334457,0.00019799,2]
[359216623,1745829122229,-249.62108246,0.0001985,2]
[359216624,1745829127329,-0.37891754,0.0001985,2]
[359216625,1745829127352,-236.01827982,0.000199,2]
[359216626,1745829127375,-13.60280264,0.00019973,2]
[359216627,1745829132192,317.26,0.00040548,30]
[359216628,1745829159499,317.27,0.00040548,30]
[359216629,1745829171142,3149.0,0.00040548,30]
[359216630,1745829184882,317.27,0.00040548,30]
[359216631,1745829190253,500.0,0.00037877,120]
[359216632,1745829190591,494.486296,0.00040547,120]
[359216633,1745829196616,500.0,0.00037877,120]
[359216634,1745829196976,528.052937,0.00040547,120]
[359216635,1745829199575,500.0,0.00037877,120]
[359216636,1745829199911,246.875844,0.00040547,120]
[359216637,1745829215005,201.12969296,0.0004,60]
[359216638,1745829242363,151.63,0.00032877,30]
[359216639,1745829245729,1722.601564,0.00018998,2]
[359216640,1745829251139,1439.91613554,0.00018998,2]
[359216642,1745829313165,1012.36,0.000405,30]
[359216643,1745829326487,1588.99,0.00040547,30]
[359216644,1745829332822,350.428,0.00040507,30]
[359216645,1745829351782,4588.99,0.00040547,30]
[359216646,1745829369330,-250.0,0.00019541,2]
[359216647,1745829373735,2631.74150964,0.00040547,30]
[359216648,1745829374733,-329.76386651,0.00019541,2]
[359216649,1745829384036,1500.0,0.00032877,120]
[359216650,1745829388829,2000.0,0.00019355,2]
[359216651,1745829388852,2000.0,0.00019355,2]
[359216652,1745829388874,2000.0,0.00019355,2]
[359216653,1745829388896,2000.0,0.00019355,2]
[359216654,1745829388917,2000.0,0.00019355,2]
[359216655,1745829388938,2000.0,0.00019355,2]
[359216656,1745829388960,2000.0,0.00019355,2]
[359216657,1745829388981,86.95,0.00019355,2]
[359216658,1745829404887,1000.0,0.00040548,30]
[359216659,1745829405474,1000.0,0.00040548,30]
[359216660,1745829405969,1000.0,0.00040548,30]
[359216661,1745829406409,1000.0,0.00040548,30]
[359216662,1745829409769,902.0,0.00040548,30]
[359216663,1745829417120,150.74,0.00027425,30]
[359216664,1745829421247,250.0,0.00019314,7]
[359216665,1745829422002,1000.0,0.00040548,30]
[359216666,1745829422306,1000.0,0.00040548,30]
[359216667,1745829422622,1000.0,0.00040548,30]
[359216668,1745829431982,1000.0,0.00040548,30]
[359216669,1745829482881,1004.0,0.00040548,30]
[359216670,1745829484435,150.34570614,0.00038356,30]
[359216671,1745829485433,500.0,0.00038356,30]
[359216672,1745829485681,500.0,0.00038356,30]
[359216673,1745829485820,500.0,0.00038356,30]
[359216674,1745829486014,500.0,0.00038356,30]
[359216675,1745829486217,500.0,0.00038356,30]
[359216676,1745829486377,500.0,0.00038356,30]
[359216677,1745829486598,500.0,0.00038356,30]
[359216678,1745829486817,500.0,0.00038356,30]
[359216679,1745829487008,500.0,0.00038356,30]
[359216680,1745829487618,500.0,0.00038356,30]
[359216681,1745829488219,500.0,0.00038356,30]
[359216682,1745829488611,500.0,0.00038356,30]
[359216683,1745829488788,500.0,0.00038356,30]
[359216684,1745829489167,505.01210222,0.00038356,30]
[359216685,1745829490157,150.0,0.00038356,30]
[359216686,1745829490250,150.0,0.00038356,30]
[359216687,1745829490423,150.0,0.00038356,30]
[359216688,1745829490593,150.0,0.00038356,30]
[359216689,1745829490764,150.0,0.00038356,30]
[359216690,1745829490944,204.61913101,0.00038356,30]
[359216691,1745829491817,1708.0,0.00038356,30]
[359216692,1745829491978,1708.0,0.00038356,30]
[359216693,1745829492162,1708.0,0.00038356,30]
[359216694,1745829492322,1708.0,0.00038356,30]
[359216695,1745829492520,1708.0,0.00038356,30]
[359216696,1745829492905,1708.0,0.00038356,30]
[359216697,1745829493083,1708.0,0.00038356,30]
[359216698,1745829493269,1708.0,0.00038356,30]
[359216699,1745829493443,1708.0,0.00038356,30]
[359216700,1745829494063,1708.0,0.00038356,30]
[359216701,1745829494129,1708.0,0.00038356,30]
[359216702,1745829494206,1708.0,0.00038356,30]
[359216703,1745829494271,1708.0,0.00038356,30]
[359216704,1745829494386,1708.0,0.00038356,30]
[359216705,1745829494547,1708.0,0.00038356,30]
[359216706,1745829494724,1708.0,0.00038356,30]
[359216707,1745829494953,1708.0,0.00038356,30]
[359216708,1745829495307,1708.0,0.00038356,30]
[359216709,1745829495479,1708.0,0.00038356,30]
[359216710,1745829495653,1708.0,0.00038356,30]
[359216711,1745829496080,1708.0,0.00038356,30]
[359216712,1745829496267,1708.0,0.00038356,30]
[359216713,1745829496456,1708.0,0.00038356,30]
[359216714,1745829496846,1719.1449313,0.00038356,30]
[359216715,1745829499271,334.04,0.00019318,2]
[359216716,1745829509892,1008.0,0.00040548,30]
[359216717,1745829521802,1665.96,0.00018998,2]
[359216718,1745829521822,334.04,0.00018998,2]
[359216719,1745829522880,969.38,0.00017401,2]
[359216720,1745829525053,696.58,0.00018998,2]
[359216721,1745829525074,1211.56977348,0.00018998,2]
[359216722,1745829525315,1000.0,0.00040548,30]
[359216723,1745829551195,334.04,0.00018998,2]
[359216724,1745829554254,454.39022652,0.00018998,2]
[359216725,1745829554279,242.18977348,0.00018998,2]
[359216726,1745829560900,334.04,0.00018998,2]
[359216727,1745829568735,6140.29,0.00040548,30]
[359216728,1745829568858,1423.77022652,0.00018998,2]
[359216729,1745829568879,242.18977348,0.00018998,2]
[359216730,1745829572525,1211.56977348,0.00018998,2]
[359216731,1745829576264,546.24045304,0.00018998,2]
[359216732,1745829576290,877.52977348,0.00018998,2]
[359216733,1745829579926,1211.56977348,0.00018998,2]
[359216734,1745829580500,11331.58950223,0.0004054,30]
[359216735,1745829582490,454.39022652,0.00018998,2]
[359216736,1745829585115,334.04,0.00018998,2]
[359216737,1745829587621,242.18977348,0.00018998,2]
[359216738,1745829589957,2011.0,0.0004054,30]
[359216739,1745829590870,242.18977348,0.00018998,2]
[359216740,1745829593380,546.24045304,0.00018998,2]
[359216741,1745829636217,200.0,0.00019246,2]
[359216742,1745829639292,350.428,0.00040507,30]
[359216743,1745829699678,157.93,0.0004,30]
[359216744,1745829699978,157.93,0.00040548,30]
[359216745,1745829765910,627.66027884,0.00040547,30]
[359216746,1745829792779,2000.0,0.00019092,2]
[359216747,1745829802514,200.0,0.00019092,2]
[359216748,1745829822514,250.0,0.00040548,30]
[359216749,1745829843485,-420.23613349,0.00019541,2]
[359216750,1745829843510,-969.38,0.00019665,2]
[359216751,1745829843536,-294.754383,0.00019799,2]
[359216752,1745829843562,-503.0,0.00019836,2]
[359216753,1745829843586,-1200.0,0.00019898,2]
[359216754,1745829843610,-300.0,0.00019899,2]
[359216755,1745829843635,-196.13152572,0.000199,2]
[359216756,1745829843658,-2500.0,0.000199,2]
[359216757,1745829843682,-622.2729045,0.000199,2]
[359216758,1745829843709,-761.4965899,0.000199,2]
[359216759,1745829843733,-511.91495902,0.00019973,2]
[359216760,1745829843756,-543.3110312,0.00019973,2]
[359216761,1745829843780,-647.1582564,0.00019986,2]
[359216762,1745829843805,-3920.9052266,0.00019986,2]
[359216763,1745829843828,-1593.387,0.00019999,2]
[359216764,1745829843855,-2144.0,0.00019999,2]
[359216765,1745829843879,-153.0,0.00019999,2]
[359216766,1745829843904,-877.0,0.00019999,2]
[359216767,1745829843930,-985.4668,0.00019999,2]
[359216768,1745829843955,-2132.167,0.00019999,2]
[359216769,1745829843981,-179.084,0.00019999,2]
[359216770,1745829844008,-175.84426564,0.00019999,2]
[359216771,1745829844034,-194.38778387,0.00019999,2]
[359216772,1745829844062,-165.08295242,0.00019999,2]
[359216773,1745829844085,-501.0,0.0002,2]
[359216774,1745829844112,-23489.63539392,0.0002,2]
[359216775,1745829844136,-177.36590547,0.0002,2]
[359216776,1745829844162,-225283.33542979,0.0002,2]
[359216777,1745829844189,-488558.68245906,0.0002,2]
[359216778,1745829848833,159.28923029,0.00038356,30]
[359216779,1745829849835,163.92429149,0.00038356,30]
[359216780,1745829853818,157.6926218,0.00038356,30]
[359216781,1745829854585,150.0,0.00038356,30]
[359216782,1745829855683,767.0,0.00038356,30]
[359216783,1745829855861,767.0,0.00038356,30]
[359216784,1745829856093,767.0,0.00038356,30]
[359216785,1745829856256,767.0,0.00038356,30]
[359216786,1745829856423,767.0,0.00038356,30]
[359216787,1745829856860,767.0,0.00038356,30]
[359216788,1745829856940,767.0,0.00038356,30]
[359216789,1745829857016,767.0,0.00038356,30]
[359216790,1745829857151,767.0,0.00038356,30]
[359216791,1745829857347,767.0,0.00038356,30]
[359216792,1745829857551,767.0,0.00038356,30]
[359216793,1745829857735,767.0,0.00038356,30]
[359216794,1745829857927,767.0,0.00038356,30]